fUSD/lending_fUSD_20240707
["ID","MTS","AMOUNT","RATE_DAILY","PERIOD"]
[331393335,1720335041748,-1765.0,0.000137,2]
[331393336,1720335041763,-880.12,0.000137,2]
[331393337,1720335041775,-3265.55644233,0.000137,2]
[331393338,1720335041788,-86878.53301714,0.000137,2]
[331393339,1720335041798,-420.0,0.00013719,2]
[331393340,1720335041808,-1249.55570818,0.00013736,2]
[331393341,1720335041818,-2495.57012719,0.00013759,2]
[331393342,1720335041828,-828.4054,0.000138,2]
[331393343,1720335041839,-1000.0,0.000138,2]
[331393344,1720335041849,-1000.0,0.000138,2]
[331393345,1720335041859,-1000.0,0.000138,2]
[331393346,1720335041869,-1006.0,0.000138,2]
[331393347,1720335041879,-1003.0,0.000138,2]
[331393348,1720335041889,-322.42894727,0.000138,2]
[331393349,1720335041898,-587.06848719,0.000138,2]
[331393350,1720335041908,-665.23592433,0.00013849,2]
[331393351,1720335041919,-500.0,0.00013888,2]
[331393352,1720335041929,-200.0,0.00013888,2]
[331393353,1720335041939,-524.43604053,0.00013889,2]
[331393354,1720335041949,-152.47,0.00013896,2]
[331393355,1720335041959,-155.0,0.00013899,2]
[331393356,1720335041970,-245000.0,0.000139,2]
[331393357,1720335041980,-155.94167811,0.000139,2]
[331393358,1720335041990,-6502.07388978,0.000139,2]
[331393359,1720335041999,-1000.0,0.000139,2]
[331393360,1720335042010,-169.57491914,0.000139,2]
[331393361,1720335042021,-1000.0,0.000139,2]
[331393362,1720335042033,-1000.0,0.000139,2]
[331393363,1720335042047,-374.63851556,0.000139,2]
[331393364,1720335042058,-294.68400088,0.000139,2]
[331393365,1720335042069,-416.55,0.0001391,2]
[331393366,1720335042082,-1000.0,0.0001392,2]
[331393367,1720335042092,-587.06848713,0.00013957,2]
[331393368,1720335042103,-164.1030384,0.00013989,2]
[331393369,1720335042115,-156.32198289,0.00013989,2]
[331393370,1720335042128,-393.07924676,0.00013989,2]
[331393371,1720335042138,-179.89189736,0.0001399,2]
[331393372,1720335042154,-179.89189736,0.0001399,2]
[331393373,1720335042164,-351.91053523,0.00013999,2]
[331393374,1720335042175,-500.0,0.00013999,2]
[331393375,1720335042185,-500.0,0.00013999,2]
[331393376,1720335042198,-500.0,0.00013999,2]
[331393377,1720335042209,-500.0,0.00013999,2]
[331393378,1720335042220,-373.53577004,0.00013999,2]
[331393379,1720335042230,-500.0,0.00013999,2]
[331393380,1720335042240,-500.0,0.00013999,2]
[331393381,1720335042253,-500.0,0.00013999,2]
[331393382,1720335042263,-500.0,0.00013999,2]
[331393383,1720335042273,-500.0,0.00013999,2]
[331393384,1720335042285,-500.0,0.00013999,2]
[331393385,1720335042294,-500.0,0.00013999,2]
[331393386,1720335042304,-500.0,0.00013999,2]
[331393387,1720335042314,-500.0,0.00013999,2]
[331393388,1720335042325,-500.0,0.00013999,2]
[331393389,1720335042336,-500.0,0.00013999,2]
[331393390,1720335042346,-500.0,0.00013999,2]
[331393391,1720335042356,-500.0,0.00013999,2]
[331393392,1720335042366,-463.69528982,0.00013999,2]
[331393393,1720335042376,-500.0,0.00013999,2]
[331393394,1720335042386,-500.0,0.00013999,2]
[331393395,1720335042395,-500.0,0.00013999,2]
[331393396,1720335042405,-500.0,0.00013999,2]
[331393397,1720335042415,-500.0,0.00013999,2]
[331393398,1720335042424,-500.0,0.00013999,2]
[331393399,1720335042433,-500.0,0.00013999,2]
[331393400,1720335042444,-287.52381935,0.00013999,2]
[331393401,1720335042454,-308.65136778,0.00013999,2]
[331393402,1720335042463,-500.0,0.00013999,2]
[331393403,1720335042474,-500.0,0.00013999,2]
[331393404,1720335042483,-413371.46032092,0.00014,2]
[331393405,1720335042497,-13155.43099431,0.00014,2]
[331393406,1720335042509,-2658.89648734,0.00014,2]
[331393407,1720335042523,-4474.43573524,0.00014,2]
[331393408,1720335042536,-24905.25111142,0.00014,2]
[331393409,1720335042549,-527.99648139,0.00014,2]
[331393410,1720335042562,-853.08727691,0.00014,2]
[331393411,1720335042697,-1611.272412,0.00014,2]
[331393412,1720335042709,-1027.74862692,0.00014,2]
[331393413,1720335042721,-659.44026358,0.00014,2]
[331393414,1720335042732,-21667.46024608,0.00014,2]
[331393415,1720335042744,-300.0,0.00014,2]
[331393416,1720335042757,-729.14939561,0.00014,2]
[331393417,1720335042770,-731.84206128,0.00014,2]
[331393418,1720335044521,-308.93063115,0.00013574,2]
[331393421,1720335044531,-273.25288272,0.00013736,2]
[331393424,1720335044543,-421.488,0.00013736,2]
[331393426,1720335044556,-433.84789977,0.00013736,2]
[331393447,1720335047141,-1366.9813447,0.00013736,2]
[331393448,1720335047150,-11537.01171906,0.00014,2]
[331393449,1720335047583,-21533.38483113,0.00014,2]
[331393450,1720335047593,-500.0,0.00014,2]
[331393451,1720335047603,-222.0,0.00014,2]
[331393452,1720335047613,-222.0,0.00014,2]
[331393454,1720335047622,-222.0,0.00014,2]
[331393456,1720335047631,-222.0,0.00014,2]
[331393457,1720335047639,-222.0,0.00014,2]
[331393458,1720335047649,-222.0,0.00014,2]
[331393459,1720335047658,-222.0,0.00014,2]
[331393460,1720335047667,-222.0,0.00014,2]
[331393461,1720335047677,-222.0,0.00014,2]
[331393462,1720335047686,-300.0,0.00014,2]
[331393463,1720335047695,-300.0,0.00014,2]
[331393464,1720335047704,-300.0,0.00014,2]
[331393465,1720335047714,-300.0,0.00014,2]
[331393466,1720335047724,-300.0,0.00014,2]
[331393467,1720335047733,-300.0,0.00014,2]
[331393468,1720335047742,-300.0,0.00014,2]
[331393469,1720335047752,-300.0,0.00014,2]
[331393470,1720335047763,-300.0,0.00014,2]
[331393471,1720335047773,-300.0,0.00014,2]
[331393472,1720335047782,-300.0,0.00014,2]
[331393473,1720335047793,-300.0,0.00014,2]
[331393474,1720335047802,-300.0,0.00014,2]
[331393476,1720335047811,-300.0,0.00014,2]
[331393478,1720335047821,-300.0,0.00014,2]
[331393479,1720335047830,-300.0,0.00014,2]
[331393480,1720335047840,-300.0,0.00014,2]
[331393481,1720335047849,-300.0,0.00014,2]
[331393482,1720335047858,-300.0,0.00014,2]
[331393483,1720335047868,-238.0,0.00014,2]
[331393484,1720335047879,-238.0,0.00014,2]
[331393485,1720335047888,-155.0,0.00014,2]
[331393486,1720335047898,-159103.16228954,0.00014,2]
[331393487,1720335047913,-508.81747651,0.00014,2]
[331393488,1720335047926,-2669.22283517,0.00014,2]
[331393490,1720335115598,673.58,0.00011562,2]
[331393491,1720335136072,292.9447,0.000117,2]
[331393507,1720335729003,908.46751284,0.00011199,2]
[331393509,1720335788968,639.9,0.00010715,2]
[331393510,1720335831440,938.55713875,0.00025,60]
[331393511,1720335930610,533.66826194,0.00011199,2]
[331393512,1720335953091,255.67407275,0.00011199,2]
[331393513,1720335985205,266.5047714,0.00011199,2]
[331393514,1720336014010,205.27551127,0.00011199,2]
[331393515,1720336018185,445.67202854,0.00011199,2]
[331393516,1720336027081,405.10660085,0.00011199,2]
[331393517,1720336058665,155.0,0.00011199,2]
[331393518,1720336069607,155.0,0.00011199,2]
[331393519,1720336077842,284.09837733,0.00011199,2]
[331393523,1720336131078,2495.57012719,0.00011199,2]
[331393558,1720336233863,-435.061857,0.0001205,2]
[331393559,1720336233872,-194.92136017,0.00012173,2]
[331393560,1720336233894,-155.0,0.00012273,2]
[331393561,1720336233904,-474.28975858,0.00012302,2]
[331393562,1720336233913,-2310.20677094,0.00012339,2]
[331393563,1720336233922,-500.0,0.00012339,2]
[331393564,1720336233932,-152.36,0.00012347,2]
[331393565,1720336233943,-2570.8912,0.00012382,2]
[331393566,1720336233952,-679.1,0.00012388,2]
[331393567,1720336233961,-150.0,0.00012395,2]
[331393568,1720336233970,-600.0,0.00012395,2]
[331393569,1720336233979,-250.0,0.00012413,2]
[331393570,1720336233988,-300.0,0.00012481,2]
[331393571,1720336233998,-23890.0,0.00012482,2]
[331393572,1720336234007,-220.36,0.00012598,2]
[331393573,1720336234016,-167.300677,0.000126,2]
[331393574,1720336234026,-167.300677,0.000126,2]
[331393575,1720336234035,-150.0,0.000126,2]
[331393576,1720336234045,-1207.74,0.000126,2]
[331393577,1720336234054,-250.0,0.00012657,2]
[331393578,1720336234063,-400.0,0.00012737,2]
[331393579,1720336234072,-217.1,0.00012737,2]
[331393580,1720336234081,-150.99,0.00012737,2]
[331393581,1720336234090,-500.0,0.0001286,2]
[331393582,1720336234100,-500.0,0.0001286,2]
[331393583,1720336234109,-500.0,0.0001286,2]
[331393584,1720336234118,-600.0,0.0001286,2]
[331393585,1720336234127,-299.99,0.00012879,2]
[331393586,1720336234137,-9999.99,0.00012879,2]
[331393587,1720336234146,-499.99,0.00012943,2]
[331393588,1720336234156,-1176.03875563,0.00012969,2]
[331393589,1720336234165,-639.9,0.00012979,2]
[331393590,1720336234175,-251.83,0.00013124,2]
[331393591,1720336234184,-158.10639475,0.00013128,2]
[331393592,1720336234194,-167.300677,0.0001323,2]
[331393593,1720336234203,-220.36,0.00013255,2]
[331393594,1720336234213,-10000.0,0.000133,2]
[331393595,1720336234223,-150.0,0.000133,2]
[331393596,1720336234233,-214.48385993,0.00013472,2]
[331393597,1720336234243,-376.41,0.000135,2]
[331393598,1720336234252,-1226.8607,0.000135,2]
[331393599,1720336234261,-430.47767915,0.00013516,2]
[331393600,1720336234270,-503.87072805,0.00013516,2]
[331393601,1720336234281,-155.31870427,0.00013516,2]
[331393602,1720336234290,-2495.57012719,0.00013516,2]
[331393603,1720336234299,-155.0,0.00013543,2]
[331393604,1720336234309,-413.21120921,0.00013574,2]
[331393605,1720336234318,-2549.5628,0.000136,2]
[331393606,1720336234327,-500.0,0.000136,2]
[331393607,1720336234337,-28578.9299,0.000136,2]
[331393608,1720336234346,-600.0,0.00013682,2]
[331393609,1720336234356,-500.0,0.00013699,2]
[331393610,1720336234364,-250.0,0.00013699,2]
[331393611,1720336234374,-445.23,0.00013699,2]
[331393612,1720336234383,-173.39,0.00013719,2]
[331393613,1720336234394,-5811.0,0.0001372,2]
[331393614,1720336234414,-5177.0,0.0001372,2]
[331393615,1720336234423,-301.526,0.0001372,2]
[331393616,1720336234433,-1664.0,0.0001372,2]
[331393617,1720336234444,-1199.0,0.0001372,2]
[331393618,1720336234456,-38243.0,0.0001372,2]
[331393619,1720336234465,-24545.8415,0.000138,2]
[331393620,1720336234474,-13598.813,0.000138,2]
[331393621,1720336234486,-2500.0,0.000138,2]
[331393622,1720336234495,-200.0,0.00013888,2]
[331393623,1720336234504,-1022.0,0.000139,2]
[331393624,1720336234513,-1768.1353,0.000139,2]
[331393625,1720336234522,-42962.00909542,0.000139,2]
[331393626,1720336234535,-400.1615341,0.000139,2]
[331393627,1720336234547,-914.70934891,0.000139,2]
[331393628,1720336234558,-409.18770388,0.000139,2]
[331393629,1720336234569,-787.72537109,0.000139,2]
[331393630,1720336234581,-638.49582452,0.000139,2]
[331393631,1720336238381,-266.5047714,0.00013128,2]
[331393632,1720336238391,-510.65543294,0.000133,2]
[331393633,1720336238409,-9489.34456706,0.000133,2]
[331393634,1720336238419,-5340.33512208,0.000139,2]
[331393635,1720336238429,-435.5932,0.000139,2]
[331393636,1720336238438,-634.0,0.000139,2]
[331393637,1720336238449,-160.20384159,0.000139,2]
[331393638,1720336238458,-7500.0,0.000139,2]
[331393639,1720336238468,-660.441358,0.000139,2]
[331393640,1720336238478,-174.934313,0.000139,2]
[331393641,1720336238490,-196.45600058,0.000139,2]
[331393642,1720336238500,-322.90926746,0.000139,2]
[331393644,1720336238510,-1036.0,0.000139,2]
[331393646,1720336238519,-440.3013654,0.000139,2]
[331393648,1720336238529,-249.75901036,0.000139,2]
[331393650,1720336238539,-348.22195447,0.00013945,2]
[331393652,1720336238552,-251.77804553,0.00013945,2]
[331393654,1720336238562,-1673.58195447,0.00013989,2]
[331393657,1720336238573,-10219.25220043,0.00013989,2]
[331393659,1720336238583,-156.85639004,0.00013989,2]
[331393661,1720336238592,-155.5464279,0.00013989,2]
[331393663,1720336238602,-1331.94498198,0.0001399,2]
[331393665,1720336238613,-1394.62017604,0.0001399,2]
[331393667,1720336238625,-7625.15322428,0.0001399,2]
[331393669,1720336238635,-8810.6026097,0.0001399,2]
[331393671,1720336238645,-7269.4868371,0.0001399,2]
[331393673,1720336238655,-5728.3710645,0.0001399,2]
[331393675,1720336238665,-4187.2552919,0.0001399,2]
[331393677,1720336238675,-257.20947315,0.00013999,2]
[331393680,1720336238690,-152.61508556,0.00013999,2]
[331393682,1720336238700,-500.0,0.00013999,2]
[331393684,1720336238710,-396.03372468,0.00013999,2]
[331393686,1720336238720,-500.0,0.00013999,2]
[331393688,1720336238730,-500.0,0.00013999,2]
[331393690,1720336238740,-500.0,0.00013999,2]
[331393692,1720336238750,-475.82338897,0.00013999,2]
[331393694,1720336238760,-259.745,0.00014,2]
[331393696,1720336238770,-150.0,0.00014,2]
[331393698,1720336238780,-360.0,0.00014,2]
[331393700,1720336238791,-1658.0,0.00014,2]
[331393702,1720336238800,-1830.0,0.00014,2]
[331393704,1720336238810,-1275.0,0.00014,2]
[331393706,1720336238820,-502.066,0.00014,2]
[331393708,1720336238830,-166.0,0.00014,2]
[331393710,1720336238839,-736.329,0.00014,2]
[331393712,1720336238849,-483.822,0.00014,2]
[331393714,1720336238859,-813.0,0.00014,2]
[331393716,1720336238870,-2375.0,0.00014,2]
[331393718,1720336238880,-260.383,0.00014,2]
[331393720,1720336238890,-1305.0,0.00014,2]
[331393722,1720336238900,-206.366,0.00014,2]
[331393724,1720336238910,-1988.0,0.00014,2]
[331393726,1720336238920,-3224.0,0.00014,2]
[331393729,1720336238930,-425.63,0.00014,2]
[331393731,1720336238940,-548.0,0.00014,2]
[331393733,1720336238951,-77844.0,0.00014,2]
[331393735,1720336238960,-286196.99339694,0.00014,2]
[331393737,1720336238973,-473678.52982457,0.00014,2]
[331393739,1720336238985,-561.434,0.00014,2]
[331393741,1720336238997,-1244.38699109,0.00014,2]
[331393744,1720336239010,-286.3073085,0.00014,2]
[331393918,1720336241424,-327.566,0.0001372,2]
[331393921,1720336241434,-98.53,0.0001389,2]
[331393923,1720336241447,-121.83,0.0001389,2]
[331393925,1720336241458,-2798.9825432,0.00014,2]
[331393927,1720336241470,-330.4,0.00014,2]
[331393929,1720336241482,-1430.46895468,0.00014,2]
[331393931,1720336241496,-2890.83312487,0.00014,2]
[331393932,1720336241509,-52926.90367071,0.00014,2]
[331393933,1720336241520,-1065.24,0.00014,2]
[331393953,1720336245253,-392.87080025,0.00014,2]
[331393954,1720336245264,-34700.80799999,0.00014,2]
[331393955,1720336246255,-500.57827625,0.00014,2]
[331393956,1720336246267,-1734.05781303,0.00014,2]
[331393957,1720336246278,-327.565824,0.00014,2]
[331393958,1720336251767,-248.59,0.0001399,3]
[331393961,1720336251777,-155464.98871259,0.00014,2]
[331393964,1720336251790,-1224.74,0.00014,2]
[331393965,1720336251802,-10444.4,0.00014,2]
[331393966,1720336252429,-763.04664345,0.00014,2]
[331393969,1720336366726,659.35,0.00011267,2]
[331393970,1720336418195,4441.60094263,0.00011267,2]
[331393971,1720336418238,5907.01310027,0.00011267,2]
[331393972,1720336418280,3434.96338592,0.00011267,2]
[331393973,1720336418324,3646.80953997,0.00011267,2]
[331393974,1720336418367,843.05469213,0.00011267,2]
[331393975,1720336418396,456824.51457081,0.00011267,2]
[331393976,1720336418424,5665.98159777,0.00011267,2]
[331393977,1720336506082,2495.57012719,0.00011199,2]
[331393978,1720336677694,266.5047714,0.00011199,2]
[331393979,1720336712080,155.0,0.00011199,2]
[331393981,1720336753811,2495.57012719,0.00011199,2]
[331393983,1720336781746,527.45944513,0.00011199,2]
[331393987,1720337010621,2495.57012719,0.00011199,2]
[331393988,1720337026615,2495.57012719,0.00011199,2]
[331393991,1720337119456,651.19,0.00010197,2]
[331393992,1720337151138,266.22868216,0.00011199,2]
[331393993,1720337196575,155.0,0.00011199,2]
[331393994,1720337274233,5969.97437209,0.00023,120]
[331393997,1720337388743,760.20967883,0.00011199,2]
[331393998,1720337410903,-300.0,0.00011996,2]
[331393999,1720337410949,-173.68,0.00011997,2]
[331394000,1720337410989,-5910.71340399,0.00011997,2]
[331394001,1720337411036,-2495.36369065,0.00011997,2]
[331394027,1720337434799,-428.45648914,0.00011997,2]
[331394028,1720337434820,-3658.6,0.00011997,2]
[331394029,1720337434840,-2186.65209013,0.00011997,2]
[331394030,1720337434860,-9608.56602444,0.00011997,2]
[331394031,1720337434880,-653.78731251,0.00011997,2]
[331394032,1720337434899,-854.16488114,0.00011997,2]
[331394033,1720337434917,-464.47486671,0.00011997,2]
[331394034,1720337434935,-1132.38722525,0.00011997,2]
[331394035,1720337434958,-271563.04572104,0.00011997,2]
[331394036,1720337434974,-162.77,0.00012116,2]
[331394037,1720337434991,-4796.1,0.00012139,2]
[331394038,1720337435006,-3313.91,0.00012213,2]
[331394039,1720337435021,-1703.49714298,0.00012246,2]
[331394040,1720337435040,-681.39069848,0.00012246,2]
[331394041,1720337435057,-190.69658346,0.00012246,2]
[331394042,1720337435072,-250.0,0.00012246,2]
[331394043,1720337435087,-200.0,0.00012341,2]
[331394044,1720337435102,-5164.63,0.00012341,2]
[331394045,1720337435116,-1244.53,0.00012341,2]
[331394046,1720337435130,-3787.38009552,0.0001235,2]
[331394047,1720337435149,-401.61999996,0.0001235,2]
[331394048,1720337435167,-5754.7,0.0001235,2]
[331394049,1720337435302,-904.96532417,0.0001235,2]
[331394050,1720337435320,-357.46371413,0.0001235,2]
[331394076,1720337438457,-12683.87086622,0.0001235,2]
[331394077,1720337438472,-2704.74,0.00012404,2]
[331394078,1720337438487,-165.37,0.00012416,2]
[331394079,1720337438502,-651.19,0.00012461,2]
[331394080,1720337438518,-250.0,0.00012575,2]
[331394081,1720337438532,-150.0,0.000126,2]
[331394082,1720337438547,-1674.4,0.00012675,2]
[331394083,1720337438561,-6861.04,0.00012716,2]
[331394084,1720337438576,-168.75,0.00012751,2]
[331394085,1720337438591,-8214.06,0.00012751,2]
[331394086,1720337438606,-150.99,0.00012751,2]
[331394087,1720337438620,-499.99,0.00012751,2]
[331394088,1720337438634,-8186.1587,0.0001276,2]
[331394089,1720337438649,-545.1174,0.0001276,2]
[331394090,1720337438664,-2450.376,0.0001276,2]
[331394091,1720337438677,-1860.323,0.0001276,2]
[331394092,1720337438692,-1285.2042,0.0001276,2]
[331394093,1720337438707,-1100.4928,0.0001276,2]
[331394094,1720337438722,-1000.0,0.0001276,2]
[331394095,1720337438736,-355.03,0.00012778,2]
[331394096,1720337438750,-640.0,0.00012835,2]
[331394097,1720337438765,-500.0,0.0001286,2]
[331394098,1720337438783,-500.0,0.0001286,2]
[331394099,1720337438798,-500.0,0.0001286,2]
[331394100,1720337438813,-1000.0,0.0001286,2]
[331394101,1720337438830,-1022.02820202,0.000129,2]
[331394102,1720337438845,-1022.02820197,0.00013066,2]
[331394103,1720337438862,-1290.34138626,0.00013128,2]
[331394104,1720337438877,-155.0,0.00013128,2]
[331394105,1720337438890,-420.0,0.00013169,2]
[331394106,1720337438905,-164.9,0.00013178,2]
[331394107,1720337438919,-164.95,0.00013178,2]
[331394108,1720337438934,-150.0,0.00013178,2]
[331394109,1720337438948,-6089.58644383,0.000133,2]
[331394110,1720337438964,-528.73,0.0001337,2]
[331394111,1720337438978,-1022.02820197,0.00013371,2]
[331394112,1720337438992,-173.68,0.00013496,2]
[331394113,1720337439006,-1022.02820197,0.00013677,2]
[331394114,1720337439020,-150.0,0.00013679,2]
[331394115,1720337439034,-500.0,0.00013682,2]
[331394117,1720337439050,-1000.0,0.00013682,2]
[331394120,1720337439064,-389.76,0.00013699,2]
[331394124,1720337439080,-1500.0,0.00013699,5]
[331394128,1720337439096,-250.0,0.00013699,2]
[331394132,1720337439111,-200.0,0.00013699,2]
[331394135,1720337439125,-323.1997,0.000137,2]
[331394138,1720337439141,-1000.0,0.000137,2]
[331394140,1720337439155,-5177.0,0.000138,2]
[331394143,1720337439170,-1658.0,0.000138,2]
[331394145,1720337439184,-1000.0,0.000138,2]
[331394148,1720337439199,-3000.0,0.0001386,2]
[331394150,1720337439214,-500.0,0.00013888,2]
[331394153,1720337439229,-200.0,0.00013888,2]
[331394155,1720337439243,-594.12744724,0.00013899,2]
[331394158,1720337439257,-3355.7269,0.000139,2]
[331394160,1720337439271,-887.0,0.000139,2]
[331394163,1720337439287,-186.24854646,0.000139,2]
[331394165,1720337439301,-7500.0,0.000139,2]
[331394168,1720337439316,-166.50600692,0.000139,2]
[331394170,1720337439330,-165.37,0.00013968,2]
[331394172,1720337439344,-1022.02820197,0.00013983,2]
[331394175,1720337439357,-13096.1702926,0.00013989,2]
[331394177,1720337439372,-211.539,0.00013989,2]
[331394179,1720337439385,-533.66826194,0.00013989,2]
[331394182,1720337439399,-544.76386976,0.00013989,2]
[331394184,1720337439413,-5211.15477202,0.0001399,2]
[331394187,1720337439435,-6429.92752568,0.0001399,2]
[331394191,1720337439467,-10185.9943027,0.0001399,2]
[331394194,1720337439484,-8730.9063077,0.0001399,2]
[331394197,1720337439504,-7275.8183128,0.0001399,2]
[331394200,1720337439522,-5820.7303178,0.0001399,2]
[331394203,1720337439539,-158.71008749,0.0001399,2]
[331394205,1720337439557,-158.71008749,0.0001399,2]
[331394208,1720337439574,-214.34122763,0.00013999,2]
[331394211,1720337439590,-292.33438899,0.00013999,2]
[331394213,1720337439606,-410.88428034,0.00013999,2]
[331394216,1720337439624,-321.22117304,0.00013999,2]
[331394218,1720337439640,-263.58284568,0.00013999,2]
[331394221,1720337439654,-150.0,0.00014,2]
[331394223,1720337439669,-593.62506713,0.00014,2]
[331394226,1720337439688,-1781.37493287,0.00014,2]
[331394229,1720337439702,-1056.95265111,0.00014,2]
[331394232,1720337439720,-248.04734889,0.00014,2]
[331394234,1720337439736,-1988.0,0.00014,2]
[331394237,1720337439750,-3224.0,0.00014,2]
[331394239,1720337439765,-283.0,0.00014,2]
[331394241,1720337439782,-548.0,0.00014,2]
[331394244,1720337439796,-1071.0,0.00014,2]
[331394246,1720337439810,-360.0,0.00014,2]
[331394249,1720337439825,-5811.0,0.00014,2]
[331394251,1720337439839,-291.0,0.00014,2]
[331394253,1720337439854,-1275.0,0.00014,2]
[331394256,1720337439867,-29592.33501892,0.00014,2]
[331394259,1720337439885,-102115.36028189,0.00014,2]
[331394261,1720337439898,-1000.0,0.00014,2]
[331394264,1720337439918,-413.18694296,0.00014,2]
[331394267,1720337439937,-209.11882284,0.00014,2]
[331394270,1720337439958,-181707.76142032,0.00014,2]
[331394273,1720337439979,-10651.93547108,0.00014,2]
[331394570,1720337443080,-3583.0331,0.00012113,2]
[331394571,1720337443091,-38243.0,0.000138,2]
[331394572,1720337443101,-1830.0,0.000138,2]
[331394573,1720337443111,-220.24,0.0001389,3]
[331394574,1720337443121,-112739.62152425,0.00014,2]
[331394575,1720337443133,-1760.19550154,0.00014,2]
[331394576,1720337443146,-6906.00280481,0.00014,2]
[331394577,1720337443158,-1500.0,0.00014,2]
[331394578,1720337443172,-2860.21085502,0.00014,2]
[331394579,1720337443183,-352.75909744,0.00014,2]
[331394580,1720337443195,-117182.03944402,0.00014,2]
[331394610,1720337448430,-250.0,0.00013606,2]
[331394611,1720337448440,-155.0,0.00013999,2]
[331394612,1720337448449,-1316.4,0.00014,2]
[331394613,1720337448463,-347.6,0.00014,2]
[331394614,1720337448473,-6535.32088896,0.00014,2]
[331394625,1720337788259,640.71,0.00010981,2]
[331394627,1720337848500,37850.46270412,0.00010981,2]
[331394632,1720338076887,881.35624115,0.00011199,2]
[331394633,1720338133745,1069.94736295,0.00011199,2]
[331394634,1720338166493,2493.83634321,0.00011199,2]
[331394635,1720338199391,1903.65279599,0.00011199,2]
[331394636,1720338206899,1342.40398669,0.00011199,2]
[331394640,1720338227387,153.25832767,0.00025,60]
[331394643,1720338334236,221.7900275,0.00011199,2]
[331394644,1720338335165,544.76386976,0.00011199,2]
[331394645,1720338338473,155.0,0.00011199,2]
[331394646,1720338395599,608.67,0.00010434,2]
[331394647,1720338417082,155.0,0.00011199,2]
[331394648,1720338436977,297.70719904,0.00011199,2]
[331394649,1720338470089,265.47446231,0.00011199,2]
[331394650,1720338517163,155.0,0.00011199,2]
[331394651,1720338520310,266.43574909,0.00011199,2]
[331394652,1720338541178,155.0,0.00011199,2]
[331394657,1720338632908,-378.2736838,0.000118,2]
[331394661,1720338632918,-158.96592151,0.00011939,2]
[331394664,1720338632928,-155.0,0.00012314,2]
[331394668,1720338632937,-150.0,0.00012329,2]
[331394671,1720338632948,-3025.07746119,0.00012366,2]
[331394672,1720338632958,-23890.0,0.00012366,2]
[331394674,1720338632968,-250.0,0.00012391,2]
[331394676,1720338632979,-250.0,0.00012415,2]
[331394678,1720338632988,-1000.0,0.00012484,2]
[331394679,1720338632999,-2132.21,0.00012484,2]
[331394681,1720338633008,-321.88,0.00012513,2]
[331394683,1720338633018,-499.99,0.00012513,2]
[331394684,1720338633028,-165.37,0.00012547,2]
[331394686,1720338633037,-608.67,0.00012698,2]
[331394687,1720338633046,-199.2846,0.0001276,2]
[331394688,1720338633058,-1055.987,0.0001276,2]
[331394689,1720338633068,-600.0,0.0001286,2]
[331394690,1720338633077,-500.0,0.0001286,2]
[331394691,1720338633087,-1600.0,0.0001286,2]
[331394693,1720338633096,-196.57,0.00012871,2]
[331394694,1720338633105,-459.07,0.00012982,2]
[331394695,1720338633115,-3026.88693848,0.00013128,2]
[331394696,1720338633133,-528.73,0.00013178,2]
[331394697,1720338633143,-775.59922913,0.000133,2]
[331394698,1720338633152,-150.0,0.0001337,2]
[331394699,1720338633169,-397.0,0.00013438,2]